[Event "LV Capablanca Memorial Premier 2022"]
[Site "La Habana"]
[Date "2022.04.22"]
[Round "4.1"]
[White "Hernandez Moya, Yuleisy"]
[Black "Ordaz Valdes, Lisandra Teresa"]
[Result "0-1"]
[ECO "C45"]
[WhiteElo "2250"]
[BlackElo "2371"]
[Annotator "TA"]
[PlyCount "82"]
[EventDate "2022.04.20"]
[EventType "tourn"]
[EventCountry "CUB"]
[SourceTitle "playchess.com"]
[Source "ChessBase"]
[SourceQuality "1"]
[TimeControl "40/5400+30:1800+30"]

{[%evp 12,82,28,29,31,34,32,28,51,54,30,23,62,43,70,55,85,77,96,92,129,125,127,115,132,74,71,74,74,76,110,100,101,103,115,9,104,93,132,123,121,116,125,120,116,105,158,172,165,156,178,61,68,64,52,60,66,0,0,-514,-500,-509,-494,-513,-513,-513,-507,-507,-501,-501,-472,-641,-627]} 1. e4 {[%emt 0:02:00]} e5 {[%emt 0:00:16]} 2. Nf3 {[%emt 0:00:06]} Nc6 {[%emt 0:00:05]} 3. d4 {[%emt 0:00:05]} exd4 {[%emt 0:00:45]} 4. Nxd4 {[%emt 0:00:07]} Bb4+ {[%emt 0:00:28]} 5. c3 {[%emt 0:00:31]} Bc5 {[%emt 0:00:05]} 6. Be3 {[%emt 0:00:26]} Bb6 {[%emt 0:00:05]} 7. Nf5 {[%emt 0:00:20]} g6 {[%emt 0:00:14] C45: Scotch Game.} 8. Bxb6 $1 {[%emt 0:01:01]} axb6 {[%emt 0:00:09]} 9. Ne3 {[%emt 0:01:06]} Nf6 {[%emt 0:00:09] White has an edge.} 10. f3 $1 {[%emt 0:02:04]} O-O {[%emt 0:00:42] The main line 10...0-0 scores better than 10...Qe7.} 11. Be2 {[%emt 0:18:46]} d6 {[%emt 0:05:44]} 12. O-O {[%emt 0:00:44]} Be6 {[%emt 0:02:17]} 13. c4 $1 {[%emt 0:00:09]} Nd7 {[%emt 0:01:20]} 14. Nc3 {[%emt 0:01:16] [#]} Nc5 $146 {[%emt 0:03:02]} ({Predecessor:} 14... f5 15. exf5 gxf5 16. f4 Nf6 17. Qd2 Qd7 18. Bf3 Rae8 19. Rae1 Kh8 20. Nb5 Qg7 {1-0 (35) Fercec,N (2456)-Loncar,R (2385) Sibenik 2011}) 15. Qd2 {[%emt 0:08:25]} Ne7 {[%emt 0:11:05]} 16. b4 {[%emt 0:03:24]} Nd7 {[%emt 0:05:20]} 17. f4 {[%emt 0:01:05] f5 is the strong threat.} f5 {[%emt 0:15:32]} 18. Bd3 {[%emt 0:03:00]} (18. Bf3 $142) 18... Nf6 $16 {[%emt 0:04:22]} 19. exf5 {[%emt 0:17:29]} Nxf5 {[%emt 0:01:27]} 20. Nxf5 {[%emt 0:00:22]} gxf5 {[%emt 0:00:12]} 21. Rae1 {[%emt 0:01:41]} Qd7 {[%emt 0:00:39]} 22. Rf3 {[%emt 0:03:10][%cal Bf1f3,Bf3g3,Bg3g5][%mdl 32]} Qf7 {[%emt 0:05:15]} 23. Qc2 {[%emt 0:11:40]} (23. Rg3+ $16 Kh8 24. Rge3) 23... Nh5 {[%emt 0:09:22]} (23... Bxc4 $11 24. Bxf5 Rfe8) 24. Nb5 {[%emt 0:05:38][%cal Ob5c7] Threatens to win with Nxc7!} Ng7 {[%emt 0:11:41]} 25. Rg3 {[%emt 0:00:33][%cal Ob5c7] Strongly threatening Nxc7!} Rae8 {[%emt 0:00:41]} 26. Qc3 {[%emt 0:05:42]} Re7 {[%emt 0:03:56]} 27. Ree3 {[%emt 0:03:02]} Kh8 {[%emt 0:03:10]} 28. Rg5 {[%emt 0:06:07][%cal Od3f5]} Qf6 {[%emt 0:10:01]} (28... h6 $142 29. Rgg3 Kh7) 29. Qxf6 {[%emt 0:00:58]} Rxf6 {[%emt 0:00:01]} 30. Nd4 {[%emt 0:00:28]} Re8 {[%emt 0:04:47] [#]} 31. Reg3 {[%emt 0:02:39]} (31. Nxf5 $1 $18 {[%mdl 512]} Bf7 (31... Nxf5 32. Rxf5) 32. Rxg7 Rxe3 33. Rxf7 $1 {[%mdl 512]} Rxf7 34. Nxe3) 31... Rf7 {[%emt 0:01:26][%cal Bf6f7,Bf7e7,Be7e6,Be6e3,Be3e4,Be4g4][%mdl 32]} 32. Nxe6 {[%emt 0:01:52]} Rxe6 {[%emt 0:01:02]} 33. Kf2 {[%emt 0:00:21] Inhibits Re1.} Rfe7 {[%emt 0:00:35]} 34. Bxf5 {[%emt 0:00:34]} (34. a3 $14) 34... Re2+ $11 {[%emt 0:00:45]} 35. Kf3 $2 {[%emt 0:00:14][%mdl 8192]} (35. Kf1 $11) 35... h5 $19 {[%emt 0:00:26][%csl Ge2][%cal Re7e3] Black is clearly winning.} ({Wrong is} 35... h6 $2 36. Rxg7 R7e3+ 37. Kg4 Rxg3+ 38. Kxg3 $19) 36. Be6 {[%emt 0:00:53]} R7xe6 {[%emt 0:00:35][%csl Ge2][%cal Re6e3]} 37. f5 {[%emt 0:00:14]} R6e3+ {[%emt 0:00:12]} 38. Kf4 {[%emt 0:00:07]} Re4+ {[%emt 0:00:09]} 39. Kf3 {[%emt 0:00:08]} R2e3+ {[%emt 0:00:51]} 40. Kf2 {[%emt 0:00:00] [#]} Rxg3 {[%emt 0:00:00]} 41. hxg3 {[%emt 0:00:39]} Rg4 {[%emt 0:02:06] Weighted Error Value: White=0.38/Black=0.15 (very precise)} 0-1

[Event "LV Capablanca Memorial Premier 2022"]
[Site "La Habana"]
[Date "2022.04.22"]
[Round "4.2"]
[White "Kiolbasa, Oliwia"]
[Black "Arribas Robaina, Maritza"]
[Result "1/2-1/2"]
[ECO "C02"]
[WhiteElo "2388"]
[BlackElo "2204"]
[Annotator "TA"]
[PlyCount "145"]
[EventDate "2022.04.20"]
[EventType "tourn"]
[EventCountry "CUB"]
[SourceTitle "playchess.com"]
[Source "ChessBase"]
[SourceQuality "1"]
[TimeControl "40/5400+30:1800+30"]

{[%evp 12,145,22,-19,-18,-12,0,0,0,0,0,0,-14,-14,22,27,42,-37,8,23,35,-18,20,0,15,16,95,88,64,64,77,78,67,67,82,-39,8,-43,-45,-40,-35,-43,0,0,22,0,0,0,0,0,172,179,156,153,209,50,223,0,0,0,219,227,219,209,209,218,216,26,26,0,0,0,65,60,73,0,1,0,0,0,0,0,0,0,0,1,20,0,6,0,0,0,0,0,0,0,26,26,26,26,26,26,26,0,0,0,26,26,26,0,33,0,0,0,0,0,0,0,0,0,0,0,0,0,0,0,0,0,0,0,0,-28000,-28000,-28000,-28000,-28000]} 1. e4 {[%emt 0:00:05]} e6 {[%emt 0:00:06]} 2. d4 {[%emt 0:00:10]} d5 {[%emt 0:00:13]} 3. e5 {[%emt 0:00:10]} c5 {[%emt 0:00:14]} 4. c3 {[%emt 0:00:10]} Nc6 {[%emt 0:00:38]} 5. Nf3 {[%emt 0:00:10]} Bd7 {[%emt 0:00:39]} 6. Bd3 {[%emt 0:09:46]} Qb6 {[%emt 0:02:55]} 7. O-O {[%emt 0:00:44]} cxd4 {[%emt 0:02:38] C02: French: Advance Variation.} 8. Re1 {[%emt 0:00:13]} h6 {[%emt 0:07:28]} 9. a3 {[%emt 0:02:10]} Rc8 {[%emt 0:06:03] [#] The position is equal.} 10. b4 $146 {[%emt 0:17:04]} ({Predecessor:} 10. Bc2 Bc5 11. b4 d3 12. bxc5 dxc2 13. Qxc2 Qxc5 14. Be3 Qa5 15. Nbd2 Qc7 16. Bc5 Nxe5 {0-1 (29) Langnau,R-Elwert,H corr 1985}) 10... dxc3 {[%emt 0:03:33]} 11. Nxc3 {[%emt 0:01:16]} Nd4 $1 {[%emt 0:06:55]} 12. Bd2 {[%emt 0:02:44]} Nxf3+ {[%emt 0:02:02]} 13. Qxf3 {[%emt 0:01:15]} Ne7 {[%emt 0:00:27]} 14. b5 {[%emt 0:06:50]} (14. Rac1 $14) 14... Qd8 {[%emt 0:07:12]} 15. Ne2 {[%emt 0:05:29]} g6 {[%emt 0:05:35]} 16. Nd4 {[%emt 0:06:22]} (16. a4 $14) 16... Bg7 {[%emt 0:02:50]} 17. Rad1 {[%emt 0:02:38]} Qb6 {[%emt 0:16:21] [#]} 18. Bb4 $1 {[%emt 0:14:38][%cal Ob4d6]} a5 {[%emt 0:16:46] [#]} (18... Qxd4 $2 19. Bxg6 $1 {[%mdl 512]} Nxg6 20. Rxd4 $18) (18... Bf8 $11 {keeps the balance.}) (18... Qd8 19. Qe3) 19. bxa6 $1 $16 {[%emt 0:00:07]} bxa6 {[%emt 0:00:09]} 20. Qf4 {[%emt 0:01:08]} Nc6 {[%emt 0:03:07]} 21. Nxc6 {[%emt 0:02:23] 0x0.001c68f4b568dp-1022s more active pieces.} Rxc6 {[%emt 0:04:15]} (21... g5 $6 22. Qg4 Rxc6 23. Rb1 $11) 22. Rb1 {[%emt 0:01:56]} (22. Qh4 Qd8 23. Qxd8+ Kxd8 $11) 22... Qd8 {[%emt 0:02:29]} 23. Rec1 {[%emt 0:09:14]} (23. Bd6 $16 g5 24. Qe3) 23... Rxc1+ {[%emt 0:01:10]} (23... Qg5 $15 24. Qxg5 hxg5) 24. Rxc1 {[%emt 0:00:51]} (24. Qxc1 $11 Bxe5 25. Qc5) 24... Qg5 $15 {[%emt 0:03:02]} 25. Qxg5 {[%emt 0:00:11]} hxg5 {[%emt 0:00:01]} 26. Bd6 {[%emt 0:00:08]} Rh4 {[%emt 0:01:37]} 27. Rb1 {[%emt 0:08:56]} Bb5 {[%emt 0:01:28] [#]} 28. g3 $1 {[%emt 0:00:33]} Rd4 {[%emt 0:00:53]} ({Much less strong is} 28... Bxd3 29. Rb8+ Kd7 30. gxh4 (30. Rb7+ Kc6 $11) 30... gxh4 31. Rb4 $14) 29. Bxb5+ {[%emt 0:00:52]} axb5 {[%emt 0:00:00]} 30. Rxb5 $11 {[%emt 0:00:09][%mdl 4096] Endgame Threatens to win with Kf1. KRB-KRB} Re4 $2 {[%emt 0:00:07] [#]} (30... Rd1+ $1 $11 {and Black is okay.} 31. Kg2 Re1) 31. f3 $1 $18 {[%emt 0:01:27]} Re2 {[%emt 0:00:08] [#]} 32. Kf1 $1 {[%emt 0:01:59]} Ra2 {[%emt 0:01:53]} (32... Rxh2 $16 33. Rb8+ Kd7) 33. Rb7 $2 {[%emt 0:03:03]} (33. Rb8+ $18 Kd7 34. Rb7+ Ke8 35. Re7+ Kf8 36. Rxe6+ Kg8 37. Re8+ Kh7 38. Re7) 33... Rxh2 $2 {[%emt 0:00:30]} (33... d4 $1 $14) 34. Rb8+ $2 {[%emt 0:00:30]} (34. Re7+ $18 Kf8 35. Rxe6+ Kg8 36. Re8+ Kh7 37. Re7) 34... Kd7 $11 {[%emt 0:00:30]} 35. Rb7+ $2 {[%emt 0:00:30]} (35. a4 $11) 35... Ke8 $18 {[%emt 0:00:30]} 36. Re7+ Kf8 {[%emt 0:00:30][%cal Og7e5]} 37. Rxe6+ {[%emt 0:01:00]} Kg8 {[%emt 0:00:30]} 38. Re8+ {[%emt 0:00:30]} Kh7 {[%emt 0:00:30]} 39. Ra8 $2 {[%emt 0:00:30]} (39. g4 $18 {Hoping for e6.} Ra2 40. Rb8) 39... d4 $11 {[%emt 0:00:30]} 40. a4 {[%emt 0:00:30]} Ra2 {[%emt 0:00:00]} 41. Ke1 {[%emt 0:01:59] Black must now prevent Ra7.} d3 {[%emt 0:00:34]} ({Black should try} 41... g4 $1 $11 42. Ra7 (42. fxg4 d3 $14) 42... gxf3 43. Rxf7 Kg8 44. Rxf3 d3) 42. Kd1 $1 $14 {[%emt 0:18:00] Strongly threatening a5.} Re2 $1 {[%emt 0:01:19]} 43. Rd8 {[%emt 0:00:37]} ({White should play} 43. a5 $16) 43... Ra2 {[%emt 0:02:06]} 44. Bc7 {[%emt 0:03:18] aiming for a5.} Rxa4 {[%emt 0:02:00]} 45. Rxd3 {[%emt 0:00:04]} g4 {[%emt 0:00:44]} 46. f4 {[%emt 0:01:01]} Re4 {[%emt 0:01:35]} 47. Bd8 {[%emt 0:00:42]} Ra4 {[%emt 0:10:23]} 48. Kc2 {[%emt 0:00:05]} Rc4+ {[%emt 0:11:33]} 49. Kb3 {[%emt 0:01:59]} Rc8 {[%emt 0:00:20]} 50. Rd7 {[%emt 0:02:02]} Kg8 {[%emt 0:01:04]} 51. Bc7 {[%emt 0:00:45]} Bf8 {[%emt 0:00:54]} 52. Kc4 {[%emt 0:02:52]} Ra8 {[%emt 0:00:10]} 53. Bd6 {[%emt 0:01:36]} Bg7 {[%emt 0:00:13]} 54. Rb7 {[%emt 0:01:52]} Ra1 {[%emt 0:01:03]} 55. Rb3 {[%emt 0:00:09]} Re1 {[%emt 0:00:59]} 56. Kd5 {[%emt 0:00:13]} Re2 {[%emt 0:00:36]} 57. Kc6 {[%emt 0:01:45]} Kh7 {[%emt 0:03:10]} 58. Kd5 {[%emt 0:00:33]} Kg8 {[%emt 0:00:12]} 59. Be7 {[%emt 0:00:49]} Re1 {[%emt 0:00:25]} 60. Kc6 {[%emt 0:00:58]} Rd1 {[%emt 0:00:34]} (60... f6 $5) 61. Bd6 {[%emt 0:00:16]} Re1 {[%emt 0:00:30]} 62. Kd7 {[%emt 0:00:38] Rb8+ is the strong threat.} g5 {[%emt 0:01:30]} 63. Rb8+ {[%emt 0:00:44]} Kh7 {[%emt 0:00:02]} 64. Ke7 {[%emt 0:00:39]} gxf4 {[%emt 0:01:16]} 65. gxf4 {[%emt 0:00:03]} g3 {[%emt 0:01:24]} 66. Rb2 {[%emt 0:00:18]} Kg6 {[%emt 0:00:34]} 67. Rb3 {[%emt 0:01:04]} Bh6 {[%emt 0:01:36]} 68. Rxg3+ {[%emt 0:00:30]} Kf5 {[%emt 0:00:00]} 69. Rf3 {[%emt 0:00:36]} Bxf4 {[%emt 0:00:18]} 70. Kxf7 {[%emt 0:00:27][%cal Oe5e6] And now e6! would win.} Kg4 {[%emt 0:00:22]} 71. Rxf4+ $4 {[%emt 0:00:30][%mdl 8192]} Kxf4 {[%emt 0:00:07]} 72. e6+ {[%emt 0:00:09]} Kf5 {[%emt 0:00:05]} 73. e7 {[%emt 0:00:03][%mdl 32768] What a bad dream for White.  Weighted Error Value: White=0.27 (precise) /Black=0.24 (precise) . An unexpected result.} 1/2-1/2

[Event "LV Capablanca Memorial Premier 2022"]
[Site "La Habana"]
[Date "2022.04.22"]
[Round "4.3"]
[White "Forgas Moreno, Yaniela"]
[Black "Lujan, Carolina"]
[Result "1-0"]
[ECO "A03"]
[WhiteElo "2303"]
[BlackElo "2334"]
[Annotator "TA"]
[PlyCount "105"]
[EventDate "2022.04.20"]
[EventType "tourn"]
[EventCountry "CUB"]
[SourceTitle "playchess.com"]
[Source "ChessBase"]
[SourceQuality "1"]
[TimeControl "40/5400+30:1800+30"]

{[%evp 15,105,-25,0,-2,-5,-16,-6,-92,0,0,0,-32,-20,-29,-23,-13,55,48,61,57,62,62,59,58,63,66,64,60,85,66,108,90,117,132,154,7,427,0,159,148,152,154,150,140,130,137,161,161,166,160,185,159,364,368,347,367,357,359,337,332,340,343,344,341,357,363,355,0,343,0,353,325,348,325,389,383,348,368,375,339,342,334,322,249,209,0,337,325,317,283,366,344]} 1. f4 {[%emt 0:05:52]} d5 {[%emt 0:00:11]} 2. Nf3 {[%emt 0:00:15]} Nf6 {[%emt 0:00:36]} 3. d3 {[%emt 0:00:55]} c5 {[%emt 0:00:49]} 4. g3 {[%emt 0:00:33]} g6 {[%emt 0:00:43]} 5. Bg2 {[%emt 0:00:22]} Bg7 {[%emt 0:00:07]} 6. O-O {[%emt 0:00:35]} O-O {[%emt 0:00:26]} 7. c3 {[%emt 0:00:55]} Nc6 {[%emt 0:00:57]} 8. Na3 {[%emt 0:01:02]} b6 {[%emt 0:08:45]} 9. Qc2 {[%emt 0:05:57] A03: Bird's Opening with 1...d5.} Ba6 {[%emt 0:09:39]} 10. Qa4 {[%emt 0:11:06] Inhibits b5.} Qc8 {[%emt 0:07:22] [#]} 11. f5 $146 {[%emt 0:11:19]} (11. Bd2 $11) ({Predecessor:} 11. b4 cxb4 12. cxb4 Nd7 13. Rb1 Bb7 14. b5 Nc5 15. Qd1 Nd4 16. Bb2 Nxf3+ 17. Bxf3 Bxb2 18. Rxb2 {0-1 (58) Rewitz,P (2328)-Grabarczyk,M (2436) Fredericia 2017}) 11... c4 {[%emt 0:16:39]} (11... gxf5 $17 12. Bd2 Bb7) 12. dxc4 $11 {[%emt 0:06:32]} dxc4 {[%emt 0:01:37]} 13. Nd4 {[%emt 0:18:38]} (13. Nxc4 $2 b5 14. Qa3 bxc4 $19) (13. Nh4 {keeps more tension.} Na5 14. Bg5 Qc5+ 15. Kh1) 13... Nxd4 {[%emt 0:03:04]} 14. cxd4 {[%emt 0:00:14]} Rb8 {[%emt 0:08:44]} 15. Nb5 {[%emt 0:08:04]} Bb7 {[%emt 0:16:07]} (15... Bxb5 $11 16. Qxb5 Ng4) 16. Nxa7 $14 {[%emt 0:03:56]} Qd8 {[%emt 0:00:27] ...Bxg2 is the strong threat.} 17. Qxc4 {[%emt 0:03:00] &Bianco is more active.} Bxg2 {[%emt 0:05:33]} 18. Kxg2 {[%emt 0:00:34]} Qd7 {[%csl LRa7,LRf5]} 19. Nb5 {[%emt 0:02:01]} (19. Nc6 Rbc8 20. d5 Nxd5 $19) 19... gxf5 20. a4 {[%emt 0:01:29]} Rbc8 {[%emt 0:07:09]} 21. Qd3 {[%emt 0:01:02]} Nd5 22. Bd2 {[%emt 0:06:08]} ({Inferior is} 22. Qxf5 Qxf5 23. Rxf5 Rxc1 $1 24. Rxc1 Ne3+ 25. Kf3 Nxf5 $17) (22. Rxf5 Rxc1 $1 {[%mdl 512]} 23. Rxc1 Qxf5 $1 24. Qxf5 Ne3+ 25. Kf3 Nxf5 $17) 22... Qc6 {aiming for ...Nf4+.} 23. Qf3 {[%emt 0:07:19] Prevents Nf4+. Hoping for Na7.} Qc2 {[%emt 0:05:28][%csl LRb2,LRd2] [#]} 24. Rfd1 {[%emt 0:00:00]} ({Don't play} 24. Qxd5 $6 e6 25. Qf3 Qxd2 $14) 24... Rfd8 {[%emt 0:01:50]} 25. Rab1 ({Better is} 25. Rac1 $16 Qe4 26. Qxe4 fxe4 27. Rxc8 Rxc8 28. Nc3 Nxc3 29. bxc3 (29. Bxc3 Rc4 $16)) 25... Rf8 $2 {[%emt 0:00:47][%mdl 8192]} 26. Ra1 $2 {[%emt 0:00:00]} (26. Qxd5 $18 e6 27. Qf3) 26... Rfd8 $1 $16 {[%emt 0:00:13]} 27. Rac1 {[%emt 0:00:00]} Qe4 {[%emt 0:00:30]} 28. Qxe4 {[%emt 0:00:00]} fxe4 {[%emt 0:00:00]} 29. Rxc8 {[%emt 0:00:00]} Rxc8 {[%emt 0:00:02]} 30. Rc1 $36 {[%emt 0:01:29][%mdl 2048] Prevents Rc4. White is really pushing.} Ra8 31. Rc4 {[%emt 0:02:54]} f5 {[%emt 0:04:54]} 32. b3 {[%emt 0:00:36]} Rd8 33. Bf4 {[%emt 0:02:32]} e5 $2 {[%emt 0:00:31]} (33... Kf7 $16 34. e3 e5 35. dxe5 Bxe5) 34. dxe5 $18 {[%emt 0:00:00]} Bxe5 {[%emt 0:01:51]} 35. Bxe5 {[%emt 0:01:39]} Ne3+ 36. Kf2 {[%emt 0:00:00]} Ng4+ {[%emt 0:00:51]} 37. Ke1 {[%emt 0:00:00]} Nxe5 {[%emt 0:00:00][%mdl 4096] Endgame KRN-KRN} 38. Rd4 {[%emt 0:00:00]} Rc8 {[%emt 0:01:32]} 39. Kd2 {[%emt 0:00:44] Against Rc2+} Ng4 {[%emt 0:00:44]} 40. Nd6 Rf8 41. Nb5 {[%emt 0:31:16]} Rc8 $1 {[%emt 0:31:00]} 42. Nd6 Rf8 {[%emt 0:00:57]} 43. h3 {[%emt 0:01:20]} Nf2 {[%emt 0:00:15]} 44. h4 {[%emt 0:00:00]} Nh1 {[%emt 0:00:00]} 45. Rc4 {[%emt 0:00:00]} Nxg3 {[%emt 0:00:00]} 46. Rc8 {[%emt 0:05:27]} Nf1+ {[%emt 0:00:00]} 47. Ke1 {[%emt 0:00:00]} Ne3 {[%emt 0:00:32]} 48. Rxf8+ {[%emt 0:00:00]} Kxf8 {[%emt 0:00:00]} 49. Kf2 {[%emt 0:00:00]} Nd1+ {[%emt 0:00:00]} 50. Ke1 {[%emt 0:00:00]} (50. Kg3 $142) 50... Ne3 {[%emt 0:00:09]} 51. Kd2 {[%emt 0:00:00]} Nf1+ {[%emt 0:00:00]} 52. Kc3 {[%emt 0:00:00]} f4 {[%emt 0:00:54]} 53. Nxe4 {[%emt 0:00:00] Weighted Error Value: White=0.45/Black=0.29 (precise)} 1-0

[Event "LV Capablanca Memorial Premier 2022"]
[Site "La Habana"]
[Date "2022.04.22"]
[Round "4.4"]
[White "Hernandez Gil, Ineymig"]
[Black "Miranda Llanes, Yerisbel"]
[Result "1/2-1/2"]
[ECO "C54"]
[WhiteElo "2348"]
[BlackElo "2261"]
[Annotator "TA"]
[PlyCount "35"]
[EventDate "2022.04.20"]
[EventType "tourn"]
[EventCountry "CUB"]
[SourceTitle "playchess.com"]
[Source "ChessBase"]
[SourceQuality "1"]
[TimeControl "40/5400+30:1800+30"]

{[%evp 9,35,14,15,-68,-59,-62,-29,-60,-74,-53,-56,-59,-62,-45,-44,-52,-57,-46,-51,-57,-56,-56,-62,-56,0,0,0,-48]} 1. e4 {[%emt 0:01:06]} e5 {[%emt 0:00:21][%cal Be7e5,Be5d4,Bd4c3][%mdl 32]} 2. Nf3 {[%emt 0:00:17]} Nc6 {[%emt 0:00:01]} 3. Bc4 {[%emt 0:00:15]} Bc5 {[%emt 0:00:09]} 4. c3 {[%emt 0:00:19]} Nf6 {[%emt 0:00:24][%cal Bg8f6,Bf6e4,Be4c3][%mdl 32]} 5. d4 {[%emt 0:00:16]} exd4 {[%emt 0:00:19]} 6. b4 {[%emt 0:00:13] C54: Giuoco Piano: 4 c3 Nf6, main lines with 5 d4 and 5 d3.} ({Better is} 6. cxd4 $11 Bb4+ 7. Bd2) 6... Bb6 $1 $15 {[%emt 0:00:40]} 7. e5 {[%emt 0:00:35]} Ne4 {[%emt 0:01:04]} (7... d5 $5 8. exf6 dxc4 9. Qe2+ (9. fxg7 Rg8 $15) 9... Be6 $15) 8. Bd5 {[%emt 0:15:22] Black has an edge.} Nxc3 {[%emt 0:00:30]} 9. Nxc3 {[%emt 0:00:16]} dxc3 {[%emt 0:00:02]} 10. O-O {[%emt 0:00:23] [#]} Ne7 $146 {[%emt 0:18:32][%cal Oc3c2]} (10... Nxb4 $2 11. Bg5 Nxd5 12. Bxd8 $18) ({Predecessor:} 10... O-O 11. Bg5 Qe8 12. Re1 Ne7 13. Bb3 Ng6 14. Qd3 d6 15. exd6 Qd7 16. Qxc3 cxd6 {0-1 (31) Hartikainen,J (2142)-Filippova,M (2075) Chess.com INT 2021}) 11. Bb3 {[%emt 0:01:21]} d5 {[%emt 0:06:24]} 12. exd6 $1 {[%emt 0:00:30]} Qxd6 {[%emt 0:03:54]} 13. Qe2 {[%emt 0:00:29] [#] Hoping for Rd1.} O-O {[%emt 0:07:00]} ({Don't do} 13... Qxb4 14. Re1 $14) 14. Rd1 $1 {[%emt 0:00:06]} Qxb4 {[%emt 0:01:22] aiming for ...Bf5.} 15. Rb1 $1 {[%emt 0:00:08][%cal Ob3f7] Black must now prevent Bxf7+!} Qc5 {[%emt 0:10:39][%cal Oc8e6] Strongly threatening ...Be6!} 16. Be3 {[%emt 0:00:11]} Qa3 {[%emt 0:01:08]} (16... Qf5 $5 {[%cal Rb6e3]} 17. Bc2 (17. Bxb6 cxb6 18. Qxe7 c2 $17) 17... Qe6 18. Bxh7+ Kh8 $17) 17. Bc1 $1 {[%emt 0:02:10]} Qc5 {[%emt 0:00:25] Threatens to win with ...Bg4.} 18. Be3 {[%emt 0:00:22] Weighted Error Value: White=0.11 (very precise) /Black=0.09 (flawless)} 1/2-1/2

[Event "LV Capablanca Memorial Premier 2022"]
[Site "La Habana"]
[Date "2022.04.22"]
[Round "4.5"]
[White "Bulmaga, Irina"]
[Black "Cori Tello, Deysi"]
[Result "1-0"]
[ECO "C12"]
[WhiteElo "2390"]
[BlackElo "2391"]
[Annotator "TA"]
[PlyCount "59"]
[EventDate "2022.04.20"]
[EventType "tourn"]
[EventCountry "CUB"]
[SourceTitle "playchess.com"]
[Source "ChessBase"]
[SourceQuality "1"]
[TimeControl "40/5400+30:1800+30"]

{[%evp 11,59,0,20,7,54,20,27,27,25,26,34,-3,1,-7,40,64,46,0,0,0,0,-9,23,-14,91,103,104,93,270,268,323,304,308,197,189,181,687,677,576,529,467,402,681,462,452,403,1678,1420,1588,1407]} 1. e4 {[%emt 0:00:04]} e6 {[%emt 0:03:44]} 2. d4 {[%emt 0:00:09]} d5 {[%emt 0:00:25]} 3. Nc3 {[%emt 0:00:09]} Nf6 {[%emt 0:01:11]} 4. Bg5 {[%emt 0:00:10]} Bb4 {[%emt 0:01:25]} 5. e5 {[%emt 0:00:11]} h6 {[%emt 0:00:08]} 6. Bc1 {[%emt 0:00:40]} Ne4 {[%emt 0:06:36]} 7. Qg4 {[%emt 0:00:09] C12: French: Classical System: McCutcheon Variation.} g5 {[%emt 0:03:42]} ({Don't play} 7... Nxc3 8. Qxg7 Kd7 9. Bd2 $16) (7... Kf8 $11) 8. a3 {[%emt 0:02:50]} (8. Nge2 $5 {[%cal Ra2a3]}) 8... Bxc3+ {[%emt 0:01:21]} 9. bxc3 {[%emt 0:00:04] [#] aiming for h4. White has an edge.} c5 {[%emt 0:00:14] Hoping for ...Qa5.} ({Don't take} 9... Nxc3 10. h4 h5 11. Qxg5 Qxg5 12. hxg5 $16) 10. Bd3 $1 {[%emt 0:01:13] [#]} cxd4 $146 {[%emt 0:05:40]} ({Predecessor:} 10... h5 11. Qh3 Nxc3 12. dxc5 Nc6 13. Qg3 Qa5 14. Bd2 Qxc5 15. Qxg5 Ne4 16. Qe3 Qxe3+ 17. Bxe3 Nxe5 {1-0 (80) Duda,J (2671)-Anton Guijarro,D (2627) Martuni 2016}) 11. Bxe4 {[%emt 0:02:21]} dxe4 {[%emt 0:03:24]} 12. Qxe4 {[%emt 0:01:13]} Qa5 {[%emt 0:00:39]} (12... Bd7 $1 $11) 13. Ne2 $14 {[%emt 0:02:11]} Nc6 {[%emt 0:00:41]} 14. O-O {[%emt 0:14:02]} (14. h4 $14 {should be considered.}) 14... Qxe5 $11 {[%emt 0:00:03]} ({But not} 14... dxc3 15. f4 $14) 15. Qd3 {[%emt 0:01:55]} Qf5 {[%emt 0:03:57]} 16. Qd2 {[%emt 0:09:34]} O-O {[%emt 0:05:29]} 17. cxd4 {[%emt 0:05:54]} Rd8 {[%emt 0:04:16]} (17... b6 $1 $11) 18. f4 $16 {[%emt 0:13:40][%cal Rf4g5]} g4 {[%emt 0:02:52]} 19. c4 {[%emt 0:04:47]} b6 $2 {[%emt 0:05:39] Loses the game.} (19... b5 $16) 20. Bb2 $18 {[%emt 0:02:25]} Na5 {[%emt 0:27:09]} 21. Qc3 {[%emt 0:03:01]} Qf6 {[%emt 0:06:58]} 22. f5 {[%emt 0:01:44]} exf5 {[%emt 0:01:59]} 23. Nf4 {[%emt 0:09:09] [#] And now Nh5 would win.} Re8 $2 {[%emt 0:07:08]} (23... Bb7 $2 24. Nh5 Qxd4+ 25. Qxd4 $18) (23... Be6) 24. Nh5 {[%emt 0:06:14]} Qh8 {[%emt 0:01:00]} 25. Qc2 {[%emt 0:05:45]} Nc6 {[%emt 0:06:03]} 26. Qf2 {[%emt 0:02:23]} f6 {[%emt 0:00:32]} (26... Kh7 $142 27. Rad1 Kg6) 27. Qh4 {[%emt 0:00:32]} Kf7 {[%emt 0:01:00]} 28. Qg3 {[%emt 0:00:50]} Bb7 {[%emt 0:00:37]} (28... Bd7 $142 29. Qc7 Re7) 29. Rxf5 {[%emt 0:00:30]} Re2 {[%emt 0:00:31]} 30. Rxf6+ {[%emt 0:01:33] Weighted Error Value: White=0.23 (precise) /Black=0.50} 1-0